{"text_format":"1","workbook":"xlsx","n_sheets":3,"sheets":["ورقة1","ورقة2","ورقة3"],"not_rendered":{"charts":0,"images":3,"macros":1,"external_links":0,"defined_names":0,"comments":0,"pivot_tables":0},"unopened":[],"bounds":{"document_bytes":16777216,"sheet_cells":100000,"rows_first":2000,"rows_last":500,"rows_between":2000,"halvings":0,"cell_chars":16384,"cell_head_chars":4096},"cells_cut":0,"cells_raw":0,"read":"whole","date_system":"1904"}

{"sheet":"ورقة1","index":0,"n_rows":27,"n_cols":15,"rows_kept":27,"cut":false,"hidden":false,"merged":[[26,2,26,3],[26,7,26,9],[26,13,26,14],[1,1,2,3],[1,13,2,15],[10,7,10,8],[22,14,22,15],[20,1,20,3],[22,12,22,13],[18,12,18,13],[6,14,6,15],[8,14,8,15],[10,13,10,15],[12,13,12,15],[14,13,14,15],[18,14,18,15],[20,14,20,15],[20,12,20,13],[14,7,14,8],[16,7,16,8],[18,7,18,8],[20,7,20,8],[14,9,14,10],[16,9,16,10],[16,13,16,15],[14,3,14,4],[22,3,22,4],[5,8,5,10],[18,9,18,10],[20,9,20,10],[12,9,12,10],[6,7,6,8],[8,7,8,8],[12,1,12,2],[14,1,14,2],[16,1,16,2],[18,1,18,2],[22,1,22,2],[4,14,4,15],[6,1,6,2],[6,3,6,5],[8,1,8,2],[10,1,10,2],[8,3,8,5],[6,12,6,13],[8,12,8,13],[4,8,4,10],[1,6,2,10],[6,9,6,10],[8,9,8,10],[10,9,10,10],[12,7,12,8]]}
[]
[null,"وحدة HR",null,null,null,null,"خلاصة خدمة"]
[]
[]
[null,"ت",7,null,null,null,null,null,null,null,null,null,null,"التاريخ",{"$f":"TODAY()","v":"2024-07-27"}]
[]
[null,"اسم الدائرة",null,{"$f":"VLOOKUP(C5,ورقة2!A2:AI1002,2,)","v":"البحث و التطوير الصناعي"},null,null,null,"الشهادة الحالية",null,{"$f":"VLOOKUP(C5,ورقة2!A2:AI1002,11,)","v":"دبلوم فني "},null,null,"تاريخ اخر علاوة",null,{"$f":"VLOOKUP(C5,ورقة2!A2:AI1002,21,)","v":0}]
[]
[null,"الاسم الكامل",null,{"$f":"VLOOKUP(C5,ورقة2!A2:AI1002,3,)","v":"اسراء صاحب ظاهر حبيب"},null,null,null,"الاختصاص الدقيق",null,{"$f":"VLOOKUP(C5,ورقة2!A2:AI1002,12,)","v":"الكترونيك"},null,null,"تاريخ اخر ترقية",null,{"$f":"VLOOKUP(C5,ورقة2!A2:AI1002,22,)","v":0}]
[]
[null,"الرقم الرمزي",null,{"$f":"VLOOKUP(C5,ورقة2!A2:AI1002,4,)","v":42651},null,null,null,"الجهة المانحة للشهادة",null,{"$f":"VLOOKUP(C5,ورقة2!A2:AI1002,13,)","v":"معهد تكنولوجيا"},null,null,"المركز",{"$f":"VLOOKUP(C5,ورقة2!A2:AI1002,23,)","v":0}]
[]
[null,"رقم هوية الدائرة",null,{"$f":"VLOOKUP(C5,ورقة2!A2:AI1002,5,)","v":"U 270"},null,null,null,"تاريخ الحصول عليها",null,{"$f":"VLOOKUP(C5,ورقة2!A2:AI1002,14,)","v":"1909-06-24"},null,null,"القسم",{"$f":"VLOOKUP(C5,ورقة2!A2:AI1002,24,)","v":0}]
[]
[null,"التولد",null,{"$f":"VLOOKUP(C5,ورقة2!A2:AI1002,6,)","v":"1984-07-29"},null,null,null,"تاريخ المباشرة الاولى",null,{"$f":"VLOOKUP(C5,ورقة2!A2:AI1002,15,)","v":"2001-11-10"},null,null,"الشعبة",{"$f":"VLOOKUP(C5,ورقة2!A2:AI1002,25,)","v":0}]
[]
[null,"الحالة الاجتماعية",null,{"$f":"VLOOKUP(C5,ورقة2!A2:AI1002,7,)","v":0},null,null,null,"تاريخ المباشرة الثانية",null,{"$f":"VLOOKUP(C5,ورقة2!A2:AI1002,16,)","v":0},null,null,"المنصب",{"$f":"VLOOKUP(C5,ورقة2!A2:AI1002,26,)","v":0}]
[]
[null,"عدد الاطفال",null,{"$f":"VLOOKUP(C5,ورقة2!A2:AI1002,8,)","v":0},null,null,null,"نوع التعيين",null,{"$f":"VLOOKUP(C5,ورقة2!A2:AI1002,17,)","v":0},null,null,"حالة الموظف",null,{"$f":"VLOOKUP(C5,ورقة2!A2:AI1002,27,)","v":0}]
[]
[null,"لديه شهيد او سجين سياسي",null,null,{"$f":"VLOOKUP(C5,ورقة2!A2:AI1002,9,)","v":0},null,null,"العنوان الوظيفي",null,{"$f":"VLOOKUP(C5,ورقة2!A2:AI1002,18,)","v":"معاون مدير فني"},null,null,"الخدمة المضافة",null,{"$f":"VLOOKUP(C5,ورقة2!A2:AI1002,28,)","v":0}]
[]
[null,"درجة القربى",null,{"$f":"VLOOKUP(C5,ورقة2!A2:AI1002,10,)","v":0},null,null,null,"الدرجة",{"$f":"VLOOKUP(C5,ورقة2!A2:AI1002,19,)","v":4},"المرحلة",{"$f":"VLOOKUP(C5,ورقة2!A2:AI1002,20,)","v":0},null,"مجموع سنوات الخدمة",null,{"$f":"VLOOKUP(C5,ورقة2!A2:AI1002,29,)","v":0}]
[]
[]
[]
[null,null,"مسؤول وحدة HR",null,null,null,null," قسم الموارد البشرية",null,null,null,null,null,"ختم الدائرة"]

{"sheet":"ورقة2","index":1,"n_rows":12,"n_cols":29,"rows_kept":12,"cut":false,"hidden":false,"merged":[]}
["ت","اسم الدائرة","الاسم الكامل","الرقم الرمزي","رقم هوية الدائرة","التولد","الحالة الاجتماعية","عدد الاطفال","لديه شهيد او سجين سياسي","درجة القربى","الشهادة الحالية","الاختصاص الدقيق","الجهة المانحة للشهادة","تاريخ الحصول عليها","تاريخ المباشرة الاولى","تاريخ المباشرة الثانية","نوع التعيين","العنوان الوظيفي","الدرجة","المرحلة","تاريخ اخر علاوة","تاريخ اخر ترقية","المركز","القسم","الشعبة","المنصب","حالة الموظف","الخدمة المضافة","مجموع سنوات الخدمة"]
[1,"البحث و التطوير الصناعي","ابتسام محمد حسن لازم",39292,null,"1976-11-28",null,null,null,null,"بكلوريوس هندسة ","تقنيات حاسوب ","مدينة العلم",2012,"1993-08-18",null,null,"رئيس مهندسين تقنيين",3]
[2,"البحث و التطوير الصناعي","احسان علي كاظم علي",66605,"U 871","1978-07-30",null,null,null,null,"ماجستير هندسة ","الكترونيك واتصالات  ","جامعة بغداد",2014,"1992-10-03",null,null,"رئيس مهندسين اقدم",2]
[3,"البحث و التطوير الصناعي","احمد ناظم محمد خلف",102776,null,"1989-08-09",null,null,null,null,"بكالوريوس هندسة ","سيطرة ونظم  ","الجامعة التكنولوجية",2007,"2009-11-23",null,null,"مهندس أقدم ",5]
[4,"البحث و التطوير الصناعي","احمد هادي فرحان شلال",66631,"U 418","1976-01-14",null,null,null,null,"بكالوريوس هندسة"," كهرباء ","الجامعة التكنولوجية ",1993,"1993-11-13",null,null,"رئيس مهندسين اقدم",2]
[5,"البحث و التطوير الصناعي","اسامة خيري سلمان بوهي",49522,"U 1012","1981-03-26",null,null,null,null,"بكالوريوس ","فيزياء","جامعة بغداد",2000,"2002-05-11",null,null," رئيس فيزياويين",3]
[6,"البحث و التطوير الصناعي","اسامة كاظم وذيح كيطان",70602,"U 679","1982-05-29",null,null,null,null,"دبلوم فني ","سيطرة ","المعهد التقني للكهرباء والالكترون",1998,"1999-09-28",null,null,"مدير فني ",3]
[7,"البحث و التطوير الصناعي","اسراء صاحب ظاهر حبيب",42651,"U 270","1984-07-29",null,null,null,null,"دبلوم فني ","الكترونيك","معهد تكنولوجيا",2001,"2001-11-10",null,null,"معاون مدير فني",4]
[8,"البحث و التطوير الصناعي","اسراء عدنان لفتة كزار",39306,"U 715","1975-11-05",null,null,null,null,"بكالوريوس هندسة ","ميكانيك  ","الجامعة التكنولوجية",1994,"1995-12-30",null,null,"رئيس مهندسين اقدم",2]
[9,"البحث و التطوير الصناعي","امال علي عبيد خضير",69221,"U434","1974-09-30",null,null,null,null,"دبلوم فني ","الكترونيك","معهد البعث ",null,"2001-09-21",null,null,"مدير فني",3]
[10,"البحث و التطوير الصناعي","امل سلمان شذر راضي",20648,"Y 1544","1971-07-02",null,null,null,null,"بكالوريوس هندسة"," كهرباء ","جامعة بغداد",null,"1904-01-06",null,null,null,4]
[null,null,null,null,null,null,null,null,null,null,"ماجستير فيزياء ","تكنولوجيا الليزر ","الجامعة التكنولوجية",null,null,null,null,"رئيس فيزياويين أقدم ",2]

{"sheet":"ورقة3","index":2,"n_rows":0,"n_cols":0,"rows_kept":0,"cut":false,"hidden":false,"merged":[]}